bitfinex-derivatives/quotes_BTCF0:USTF0_20250814
["timestamp","ask_amount","ask_price","bid_price","bid_amount"]
[1755152464771,0.03948,121630.0,121620.0,0.68657146]
[1755152464772,0.002,121630.0,121620.0,0.68657146]
[1755152464969,0.04048,121630.0,121620.0,0.68657146]
[1755152465172,0.04048,121630.0,121620.0,1.45985146]
[1755152465570,0.04048,121630.0,121620.0,1.45984831]
[1755152465770,0.003,121630.0,121620.0,1.40066436]
[1755152466075,1.05854608,121630.0,121620.0,0.02570219]
[1755152466374,0.57985041,121630.0,121620.0,0.02570219]
[1755152466568,0.46531061,121630.0,121620.0,0.62738436]
[1755152466769,0.38016061,121630.0,121620.0,1.40058436]
[1755152466972,0.41764061,121630.0,121620.0,0.62738436]
[1755152467170,0.13902041,121630.0,121620.0,0.92180869]
[1755152467473,0.57985041,121630.0,121620.0,0.90437869]
[1755152467785,0.57985041,121630.0,121620.0,0.82219219]
[1755152467970,0.57985041,121630.0,121620.0,0.90437859]
[1755152468277,0.57985041,121630.0,121620.0,0.13125859]
[1755152468777,0.57985041,121630.0,121620.0,0.90405859]
[1755152469276,0.57985041,121630.0,121620.0,0.13125859]
[1755152469783,0.57985041,121630.0,121620.0,0.92116859]
[1755152470873,0.41764061,121630.0,121620.0,0.62738426]
[1755152471170,0.49982031,121630.0,121620.0,1.39962426]
[1755152471366,0.13902031,121630.0,121620.0,1.39946289]
[1755152471676,0.05684061,121630.0,121620.0,1.39930289]
[1755152473073,0.003,121630.0,121620.0,1.56366289]
[1755152473276,0.003,121630.0,121620.0,1.15262289]
[1755152473574,0.001,121640.0,121620.0,2.10599446]
[1755152473774,0.001,121640.0,121630.0,1.73087527]
[1755152473981,0.001,121640.0,121630.0,1.90815008]
[1755152474479,0.03848,121640.0,121630.0,1.90803008]
[1755152474681,0.001,121640.0,121630.0,1.90803008]
[1755152475075,0.001,121640.0,121630.0,1.90603008]
[1755152475275,0.03848,121640.0,121630.0,1.90603008]
[1755152475779,0.001,121640.0,121630.0,1.90603008]
[1755152476174,1.53848,121640.0,121630.0,1.13447008]
[1755152476371,0.001,121650.0,121630.0,1.48439548]
[1755152476577,0.001,121660.0,121650.0,0.0821662]
[1755152476873,0.001,121670.0,121660.0,0.0821594]
[1755152477078,0.001,121670.0,121660.0,0.93450588]
[1755152477273,0.001,121670.0,121660.0,1.70606588]
[1755152477476,0.001,121670.0,121660.0,0.94735055]
[1755152477774,0.001,121670.0,121660.0,1.73572067]
[1755152477968,0.001,121670.0,121660.0,1.90010467]
[1755152478382,0.001,121670.0,121660.0,1.88325455]
[1755152478572,0.001,121670.0,121660.0,2.04763855]
[1755152478779,0.001,121670.0,121660.0,1.11173455]
[1755152479080,0.001,121680.0,121660.0,2.24724985]
[1755152479278,0.001,121680.0,121670.0,1.69268867]
[1755152479485,0.001,121680.0,121670.0,1.70553948]
[1755152479781,0.001,121680.0,121670.0,1.86991548]
[1755152479981,0.002,121690.0,121680.0,0.0821463]
[1755152480178,0.002,121700.0,121690.0,0.0821395]
[1755152480372,0.002,121700.0,121690.0,1.72225902]
[1755152480582,0.002,121700.0,121690.0,1.72229902]
[1755152480783,0.002,121700.0,121690.0,0.93447789]
[1755152480979,0.002,121700.0,121690.0,1.70543789]
[1755152481577,0.03948,121700.0,121690.0,0.93447789]
[1755152481783,0.07184,121700.0,121690.0,0.93447789]
[1755152482081,0.11951,121700.0,121690.0,1.70523789]
[1755152482278,0.11951,121700.0,121690.0,0.09498222]
[1755152482482,0.48031,121700.0,121690.0,0.86578222]
[1755152482788,0.5624428,121700.0,121690.0,0.09498222]
[1755152482984,0.5624428,121700.0,121690.0,0.78356272]
[1755152483175,0.5624428,121700.0,121690.0,0.86562222]
[1755152483484,0.5624428,121700.0,121690.0,0.09498222]
[1755152483683,0.5624428,121700.0,121690.0,0.86558222]
[1755152484186,0.5624428,121700.0,121690.0,0.86758222]
[1755152484579,0.5624428,121700.0,121690.0,0.09698222]
[1755152484779,0.5624428,121700.0,121690.0,0.86730222]
[1755152485190,0.5624428,121700.0,121690.0,0.86722222]
[1755152485485,0.5624428,121700.0,121690.0,0.88006664]
[1755152485782,0.5624428,121700.0,121690.0,0.88002664]
[1755152485978,0.5624428,121700.0,121690.0,0.79772714]
[1755152486287,0.5624428,121700.0,121690.0,0.87982667]
[1755152486475,0.5624428,121700.0,121690.0,0.10982667]
[1755152486675,0.5624428,121700.0,121690.0,0.87982667]
[1755152487585,0.5624428,121700.0,121690.0,0.10982667]
[1755152487786,0.5624428,121700.0,121690.0,0.87958667]
[1755152488388,0.5624428,121700.0,121690.0,0.10982667]
[1755152488883,0.5624428,121700.0,121690.0,0.87938667]
[1755152489083,0.5624428,121700.0,121690.0,0.8793884]
[1755152489389,0.5624428,121700.0,121690.0,0.09698395]
[1755152489584,0.48031,121700.0,121690.0,0.86646395]
[1755152490282,0.48031,121700.0,121690.0,1.34515962]
[1755152490587,0.5624428,121700.0,121690.0,0.86646395]
[1755152491083,0.5624428,121700.0,121690.0,0.09698395]
[1755152491277,0.5624428,121700.0,121690.0,0.86622395]
[1755152492382,1.16113847,121700.0,121690.0,0.01484445]
[1755152492583,0.1968598,121660.0,121650.0,0.1283528]
[1755152492789,0.4755,121660.0,121650.0,0.8971528]
[1755152492990,0.4755,121660.0,121650.0,1.37592847]
[1755152493379,0.5576598,121660.0,121650.0,0.60704847]
[1755152493588,0.5576598,121660.0,121650.0,1.37608847]
[1755152493886,0.5576598,121660.0,121650.0,1.37908847]
[1755152494283,0.4755,121660.0,121650.0,1.37908847]
[1755152495486,0.4755,121660.0,121650.0,1.37608847]
[1755152495687,0.4755,121660.0,121650.0,1.38008847]
[1755152495882,0.39599,121660.0,121650.0,0.61104847]
[1755152496783,0.39599,121660.0,121650.0,1.37940847]
[1755152497388,0.39599,121660.0,121650.0,0.61104847]
[1755152497594,0.39599,121670.0,121660.0,0.0821598]
[1755152497894,0.39599,121670.0,121660.0,1.37520547]
[1755152498091,0.39599,121670.0,121660.0,0.60704547]
[1755152498287,0.03519,121670.0,121660.0,0.60704547]
[1755152498493,0.03519,121670.0,121660.0,1.37512547]
[1755152498994,0.03519,121670.0,121660.0,0.60704547]
[1755152499294,0.4755,121670.0,121660.0,1.37512547]
[1755152500889,0.4755,121670.0,121660.0,0.1283498]
[1755152501096,1.11850847,121670.0,121660.0,0.8510797]
[1755152501297,0.6398128,121670.0,121660.0,0.8510797]
[1755152501497,0.6398128,121670.0,121660.0,0.76892]
[1755152502097,1.28289247,121670.0,121660.0,0.003]
[1755152502285,1.34289247,121670.0,121660.0,0.003]
[1755152502495,1.28289247,121670.0,121660.0,0.003]
[1755152503999,1.30109694,121670.0,121660.0,0.002]
[1755152504299,1.41209694,121670.0,121660.0,0.002]
[1755152504600,1.24771294,121670.0,121660.0,0.02569884]
[1755152504900,0.1968665,121650.0,121640.0,1.0137933]
[1755152505091,0.5576665,121650.0,121640.0,1.0137933]
[1755152505291,0.5576665,121650.0,121640.0,1.0178933]
[1755152505491,0.5576665,121650.0,121640.0,0.2506133]
[1755152505697,0.5576665,121650.0,121640.0,1.0177733]
[1755152505887,0.5576665,121650.0,121640.0,0.8533495]
[1755152507700,0.5576665,121650.0,121640.0,0.8543495]
[1755152507901,0.5576665,121650.0,121640.0,0.0892695]
[1755152508303,0.9184665,121650.0,121640.0,0.003]
[1755152508511,0.1968803,121630.0,121620.0,0.08424974]
[1755152508697,0.5576803,121630.0,121620.0,0.08424974]
[1755152508891,0.9184803,121630.0,121620.0,0.08424974]
[1755152509105,0.9184803,121630.0,121620.0,0.00206264]
[1755152510892,0.9184803,121630.0,121620.0,0.00406264]
[1755152512305,0.9184803,121630.0,121620.0,0.08824974]
[1755152513305,0.9849175,121630.0,121620.0,0.08824974]
[1755152513506,0.9849175,121630.0,121620.0,0.00606264]
[1755152516708,0.9849175,121630.0,121620.0,0.01891516]
[1755152518206,1.47361317,121630.0,121620.0,0.01891516]
[1755152518410,2.23889317,121630.0,121620.0,0.01891516]
[1755152518910,2.23889317,121630.0,121620.0,0.01885252]
[1755152519313,1.47361317,121630.0,121620.0,0.01885252]
[1755152519512,2.23889317,121630.0,121620.0,0.01885252]
[1755152521504,0.9949175,121630.0,121620.0,0.11347578]
[1755152521704,0.9849175,121630.0,121620.0,0.65021549]
[1755152522207,0.9849175,121630.0,121620.0,0.17151982]
[1755152522805,0.9849175,121630.0,121620.0,0.12753982]
[1755152523318,0.9849175,121630.0,121620.0,0.17151982]
[1755152523811,0.9849175,121630.0,121620.0,0.18396217]
[1755152524408,0.9849175,121630.0,121620.0,0.13998217]
[1755152525311,1.46361317,121630.0,121620.0,0.01885252]
[1755152525512,1.46361317,121630.0,121620.0,0.10103982]
[1755152525717,1.47361317,121630.0,121620.0,0.01885252]
[1755152527023,1.47361317,121630.0,121620.0,0.01685252]
[1755152527219,1.47461317,121630.0,121620.0,0.01685252]
[1755152527422,1.59461317,121630.0,121620.0,0.01685252]
[1755152528021,1.59461317,121630.0,121620.0,0.01485252]
[1755152528022,1.59661317,121630.0,121620.0,0.01485252]
[1755152528719,1.61481442,121630.0,121620.0,0.02730096]
[1755152530015,0.1278473,121620.0,121610.0,0.1653841]
[1755152530217,1.03846297,121620.0,121610.0,0.1653841]
[1755152531015,1.04846297,121620.0,121610.0,0.001]
[1755152531521,1.04846297,121620.0,121610.0,0.0831941]
[1755152531908,1.066689,121620.0,121610.0,0.001]
[1755152532919,1.08211315,121620.0,121610.0,0.001]
[1755152533221,1.08311315,121620.0,121610.0,0.001]
[1755152533413,1.08311315,121620.0,121610.0,0.0831941]
[1755152534009,1.08311315,121620.0,121610.0,0.001]
[1755152534417,1.08311315,121620.0,121610.0,0.0831941]
[1755152535017,1.08311315,121620.0,121610.0,0.001]
[1755152536323,0.60441748,121620.0,121610.0,0.001]
[1755152536524,1.08311315,121620.0,121610.0,0.001]
[1755152537823,1.08311315,121620.0,121610.0,0.0831941]
[1755152538727,1.01362822,121620.0,121610.0,0.0831941]
[1755152538927,1.01362822,121620.0,121610.0,0.001]
[1755152539228,1.03755822,121620.0,121610.0,0.001]
[1755152539925,0.64330748,121620.0,121610.0,0.001]
[1755152540127,1.05251822,121620.0,121610.0,0.001]
[1755152541518,0.0971541,121610.0,121600.0,0.001]
[1755152541724,0.0971541,121610.0,121590.0,0.001]
[1755152541725,0.2378708,121600.0,121590.0,0.001]
[1755152541918,1.12788154,121600.0,121590.0,0.01385529]
[1755152542128,1.12788154,121600.0,121590.0,0.02623312]
[1755152542517,1.14613907,121600.0,121590.0,0.10844072]
[1755152542720,1.91153907,121600.0,121590.0,0.10844072]
[1755152544124,1.14613907,121600.0,121590.0,0.10844072]
[1755152544326,1.91153907,121600.0,121590.0,0.10844072]
[1755152544624,1.91153907,121600.0,121590.0,0.11044072]
[1755152545629,1.91153907,121600.0,121590.0,0.02814075]
[1755152545932,0.1970276,121590.0,121580.0,0.001]
[1755152546229,1.90500495,121590.0,121580.0,0.001]
[1755152546420,1.13960495,121590.0,121580.0,0.001]
[1755152546621,1.90500495,121590.0,121580.0,0.001]
[1755152547225,1.90500495,121590.0,121580.0,0.003]
[1755152547627,1.90500495,121590.0,121580.0,0.006]
[1755152548031,1.13960495,121590.0,121580.0,0.006]
[1755152548224,1.90500495,121590.0,121580.0,0.006]
[1755152549331,1.90504495,121590.0,121580.0,0.004]
[1755152549723,1.90500495,121590.0,121580.0,0.004]
[1755152550027,1.90500495,121590.0,121570.0,0.001]
[1755152550028,0.2313543,121580.0,121570.0,0.001]
[1755152550228,1.11136504,121580.0,121570.0,0.001]
[1755152550427,1.87676504,121580.0,121570.0,0.001]
[1755152551226,1.87676504,121580.0,121570.0,0.004]
[1755152552328,1.87676504,121580.0,121570.0,0.006]
[1755152552524,0.1371446,121550.0,121540.0,0.165476]
[1755152552723,0.5921746,121550.0,121540.0,0.1069171]
[1755152552930,0.5921746,121550.0,121540.0,0.2086271]
[1755152553830,0.4430346,121550.0,121540.0,0.2086271]
[1755152554035,0.5322646,121550.0,121540.0,0.62083784]
[1755152554236,0.3608,121550.0,121540.0,0.2116271]
[1755152554438,0.50994,121560.0,121550.0,0.2076246]
[1755152554626,0.3608,121560.0,121550.0,0.61683534]
[1755152555335,0.39512,121560.0,121550.0,0.9731046]
[1755152555645,0.45003,121560.0,121550.0,0.9731046]
[1755152555935,0.51440055,121560.0,121550.0,0.2076246]
[1755152556140,0.15360055,121560.0,121550.0,0.9731046]
[1755152556434,0.23582835,121560.0,121550.0,0.9741046]
[1755152556642,0.59662835,121560.0,121550.0,0.9741046]
[1755152556932,0.60162835,121560.0,121550.0,0.9741046]
[1755152557129,1.12210866,121560.0,121550.0,0.001]
[1755152557334,1.5313194,121560.0,121550.0,0.001]
[1755152557636,0.67289792,121560.0,121550.0,0.1761645]
[1755152557828,1.08210866,121560.0,121550.0,0.12639]
[1755152558029,1.08210866,121560.0,121550.0,0.13925003]
[1755152558337,1.08210866,121560.0,121550.0,0.22148453]
[1755152558728,1.08210866,121560.0,121550.0,0.13925003]
[1755152559531,1.08210866,121560.0,121550.0,0.01386003]
[1755152559731,1.6013194,121560.0,121550.0,0.01386003]
[1755152559931,2.3667594,121560.0,121550.0,0.01386003]
[1755152560237,1.95754866,121560.0,121550.0,0.01386003]
[1755152560933,2.3667594,121560.0,121550.0,0.01386003]
[1755152561438,0.1421445,121550.0,121540.0,0.001]
[1755152561641,1.87682524,121550.0,121540.0,0.001]
[1755152562742,1.87682524,121550.0,121540.0,0.003]
[1755152563037,1.87682524,121550.0,121540.0,0.0852413]
[1755152563339,0.7021745,121550.0,121540.0,0.003]
[1755152563535,1.87682524,121550.0,121540.0,0.0852413]
[1755152563731,1.87690524,121550.0,121540.0,0.0852413]
[1755152564126,1.81690524,121550.0,121540.0,0.003]
[1755152564935,0.6421745,121550.0,121540.0,0.003]
[1755152565136,1.81686524,121550.0,121540.0,0.003]
[1755152566133,1.5,121540.0,121500.0,0.3608]
[1755152566341,1.00141234,121510.0,121500.0,0.082268]
[1755152566640,1.00141234,121510.0,121500.0,0.1334484]
[1755152566842,0.2314084,121500.0,121490.0,0.2241652]
[1755152567039,1.00141914,121500.0,121490.0,0.08628]
[1755152567235,0.3136956,121490.0,121480.0,0.02368]
[1755152567437,1.16606235,121490.0,121480.0,0.19963941]
[1755152567635,1.16606235,121490.0,121480.0,0.13233761]
[1755152567636,1.00150115,121490.0,121480.0,0.13233761]
[1755152567941,0.91922615,121490.0,121480.0,0.23642871]
[1755152568130,1.00150045,121490.0,121480.0,0.23642871]
[1755152568736,1.07276247,121490.0,121480.0,0.23642871]
[1755152568937,1.07276247,121490.0,121480.0,0.01225761]
[1755152569143,0.14914,121470.0,121460.0,0.3887659]
[1755152569342,0.50465413,121470.0,121460.0,0.40101131]
[1755152569657,0.51862755,121470.0,121460.0,0.40101131]
[1755152570040,0.15782755,121470.0,121460.0,0.40101131]
[1755152570250,0.60091565,121470.0,121460.0,0.31871901]
[1755152570932,1.08138841,121470.0,121460.0,0.13232541]
[1755152571142,1.08138841,121470.0,121460.0,0.06642541]
[1755152571348,1.14828833,121470.0,121460.0,0.07042541]
[1755152571556,1.14828833,121470.0,121460.0,0.05818]
[1755152572046,1.14828833,121470.0,121460.0,0.01923541]
[1755152572346,2.04382133,121470.0,121460.0,0.007]
[1755152573056,2.04382133,121470.0,121460.0,0.004]
[1755152573538,2.04494133,121470.0,121460.0,0.01287008]
[1755152574741,1.27922133,121470.0,121460.0,0.01287008]
[1755152575046,2.04494133,121470.0,121460.0,0.01287008]
[1755152575644,1.27922133,121470.0,121460.0,0.01287008]
[1755152576040,2.04502133,121470.0,121460.0,0.01287008]
[1755152576540,1.27922133,121470.0,121460.0,0.01287008]
[1755152576738,2.04502133,121470.0,121460.0,0.01287008]
[1755152576949,1.27922133,121470.0,121460.0,0.01287008]
[1755152577156,2.04502133,121470.0,121460.0,0.01287008]
[1755152577441,0.79874857,121470.0,121460.0,0.01287008]
[1755152577647,0.64610797,121470.0,121460.0,0.24075478]
[1755152577849,1.14991073,121470.0,121460.0,0.24075478]
[1755152578536,1.14991073,121470.0,121460.0,0.01287008]
[1755152578743,1.14985113,121470.0,121460.0,0.01287008]
[1755152578936,1.91573113,121470.0,121460.0,0.01287008]
[1755152579141,1.19985113,121470.0,121460.0,0.01287008]
[1755152579343,1.14985113,121470.0,121460.0,0.01287008]
[1755152579538,1.91573113,121470.0,121460.0,0.01287008]
[1755152579743,0.1978247,121460.0,121450.0,0.1543613]
[1755152579944,1.07483287,121460.0,121450.0,0.20308047]
[1755152580139,1.07483287,121460.0,121450.0,0.12077917]
[1755152580345,1.07483287,121460.0,121450.0,0.20308067]
[1755152580544,0.59436011,121460.0,121450.0,0.24076067]
[1755152580845,7.541e-05,121460.0,121450.0,0.24076067]
[1755152581150,0.11442011,121460.0,121450.0,0.24076067]
[1755152581339,7.541e-05,121460.0,121450.0,0.24076067]
[1755152581544,7.541e-05,121460.0,121450.0,0.60156067]
[1755152581847,0.59436021,121460.0,121450.0,1.00763933]
[1755152582041,1.07483297,121460.0,121450.0,0.92633783]
[1755152582346,0.44317021,121460.0,121450.0,0.24275933]
[1755152582556,0.08237021,121460.0,121450.0,0.24275933]
[1755152582851,0.71403297,121460.0,121450.0,0.24275933]
[1755152583152,0.23356021,121460.0,121450.0,0.24275933]
[1755152583548,0.06022541,121460.0,121450.0,0.24275933]
[1755152583850,7.541e-05,121460.0,121450.0,1.00863933]
[1755152584051,0.14252011,121460.0,121450.0,0.03731783]
[1755152584360,1.07483287,121460.0,121450.0,0.01486783]
[1755152584556,1.07475746,121460.0,121450.0,0.01486783]
[1755152585456,1.84063746,121460.0,121450.0,0.01486783]
[1755152585660,1.3601647,121460.0,121450.0,0.01486783]
[1755152585847,1.84063746,121460.0,121450.0,0.01486783]
[1755152586158,1.07475746,121460.0,121450.0,0.01486783]
[1755152586349,1.90063746,121460.0,121450.0,0.01486783]
[1755152586845,1.89163746,121460.0,121450.0,0.01386783]
[1755152587046,1.12575746,121460.0,121450.0,0.01286783]
[1755152587245,1.12575746,121460.0,121440.0,0.0041]
[1755152587246,0.2334916,121450.0,121440.0,0.0041]
[1755152587451,1.12476436,121450.0,121440.0,0.0041]
[1755152587646,1.90064436,121450.0,121440.0,0.0041]
[1755152587844,0.2334984,121440.0,121430.0,8e-05]
[1755152588052,1.07477116,121440.0,121430.0,8e-05]
[1755152588251,1.89065116,121440.0,121430.0,8e-05]
[1755152588554,1.90073116,121440.0,121430.0,8e-05]
[1755152589054,0.2335119,121420.0,121410.0,0.76595101]
[1755152589360,1.07478466,121420.0,121410.0,5.001e-05]
[1755152589550,1.12486007,121420.0,121410.0,5.001e-05]
[1755152589749,1.07486007,121420.0,121410.0,5.001e-05]
[1755152590054,1.54558466,121420.0,121410.0,5.001e-05]
[1755152590352,0.1424855,121400.0,121390.0,0.1687822]
[1755152590553,0.60306577,121400.0,121390.0,0.1687822]
[1755152590760,0.43785475,121400.0,121390.0,0.2586522]
[1755152591055,0.17822091,121400.0,121390.0,1.0825722]
[1755152591251,0.59440091,121400.0,121390.0,1.0246122]
[1755152591555,0.59440091,121400.0,121390.0,1.0865722]
[1755152591761,0.06446493,121400.0,121390.0,0.3206122]
[1755152591960,0.06446493,121400.0,121390.0,1.56704496]
[1755152592158,0.06446493,121400.0,121390.0,1.4473722]
[1755152592349,0.06446493,121400.0,121390.0,1.0865722]
[1755152592550,0.18246043,121400.0,121390.0,1.0865722]
[1755152592751,0.21451043,121400.0,121390.0,1.0865722]
[1755152592952,0.06778541,121400.0,121390.0,1.0905722]
[1755152593250,7.541e-05,121400.0,121390.0,0.96583696]
[1755152593449,0.42851,121420.0,121410.0,0.1424587]
[1755152593649,0.99246276,121420.0,121410.0,0.2342587]
[1755152593855,1.07478476,121420.0,121410.0,0.07833]
[1755152594053,0.2335187,121410.0,121400.0,1.0826315]
[1755152594252,0.5943187,121410.0,121400.0,1.0826315]
[1755152594448,0.60790812,121420.0,121410.0,0.1268187]
[1755152594651,0.60790812,121420.0,121410.0,0.2352587]
[1755152594852,0.42095,121420.0,121410.0,0.2352587]
[1755152595050,1.03912466,121420.0,121410.0,0.0833287]
[1755152595251,1.07478466,121420.0,121410.0,0.0833287]
[1755152595561,0.5943119,121420.0,121410.0,0.2352587]
[1755152595858,1.07478466,121420.0,121410.0,0.2352587]
[1755152596054,1.07578466,121420.0,121410.0,0.001]
[1755152596261,0.1424787,121410.0,121400.0,1.1650607]
[1755152596560,0.5943187,121410.0,121400.0,1.1891707]
[1755152596761,0.2335187,121410.0,121400.0,1.1891707]
[1755152596952,0.5943187,121410.0,121400.0,0.9665415]
[1755152597152,1.07479146,121410.0,121400.0,0.9307015]
[1755152597658,1.07479146,121410.0,121400.0,0.9655415]
[1755152597862,0.5943187,121410.0,121400.0,0.8832099]
[1755152598052,1.07479146,121410.0,121400.0,0.8852099]
[1755152598247,0.5943187,121410.0,121400.0,0.9656199]
[1755152598551,0.2101887,121410.0,121400.0,1.0032999]
[1755152598751,0.12786,121410.0,121400.0,1.0032999]
[1755152598951,0.03566,121410.0,121400.0,1.3640999]
[1755152599160,0.5943188,121410.0,121400.0,1.01617365]
[1755152599354,0.2335188,121410.0,121400.0,1.01617415]
[1755152599756,0.2335187,121410.0,121400.0,1.01617415]
[1755152601351,0.2335187,121410.0,121400.0,0.25013415]
[1755152601556,0.2335187,121410.0,121400.0,1.01621415]
[1755152601955,0.71891889,121420.0,121410.0,0.0823287]
[1755152602152,0.77278019,121420.0,121410.0,0.24713295]
[1755152602558,0.69045149,121420.0,121410.0,0.24713295]
[1755152602862,0.69045149,121420.0,121410.0,0.16480425]
[1755152603164,1.17092425,121420.0,121410.0,0.24713305]
[1755152603352,0.69045149,121420.0,121410.0,0.24713305]
[1755152603752,0.69045149,121420.0,121410.0,0.24813305]
[1755152603954,0.3608,121440.0,121420.0,0.3071064]
[1755152604148,0.39606,121440.0,121430.0,0.2289052]
[1755152604353,0.39606,121440.0,121430.0,0.01287425]
[1755152604354,1.07386116,121440.0,121430.0,0.01287425]
[1755152604760,1.00382484,121440.0,121430.0,0.01287425]
[1755152605062,1.53722277,121440.0,121430.0,0.01287425]
[1755152605257,0.2326155,121400.0,121390.0,0.8815011]
[1755152605550,0.99046246,121400.0,121390.0,0.0001188]
[1755152605758,0.39878,121400.0,121390.0,0.60657754]
[1755152605958,0.07324,121400.0,121390.0,0.63948754]
[1755152606152,0.94474914,121410.0,121390.0,0.80416824]
[1755152606354,0.5934088,121410.0,121400.0,0.9960055]
[1755152606564,0.5934088,121410.0,121400.0,0.2289255]
[1755152606759,0.51108,121410.0,121400.0,0.9960055]
[1755152607057,0.05029,121410.0,121400.0,1.40668194]
[1755152607263,0.5934052,121420.0,121410.0,0.2289188]
[1755152607559,0.51108,121420.0,121410.0,0.2289188]
[1755152607859,0.51108,121420.0,121410.0,0.63935524]
[1755152608057,0.3608,121420.0,121410.0,0.63935524]
[1755152608251,0.39606,121420.0,121410.0,0.63935524]
[1755152608452,0.593402,121420.0,121410.0,0.2289188]
[1755152608654,0.45516,121420.0,121410.0,0.2289188]
[1755152608855,0.15028,121420.0,121410.0,0.5897188]
[1755152609354,0.232602,121420.0,121410.0,0.5897188]
[1755152609666,0.09436,121420.0,121410.0,0.5897188]
[1755152609854,0.09436,121420.0,121410.0,1.00015524]
[1755152610161,0.37583,121440.0,121430.0,0.2289052]
[1755152610366,1.00382484,121440.0,121430.0,0.9971852]
[1755152610667,0.51108,121440.0,121430.0,0.63934164]
[1755152610853,0.0183872,121450.0,121440.0,0.0823084]
[1755152611051,0.0183872,121450.0,121440.0,0.91499]
[1755152611052,0.2509688,121450.0,121440.0,0.91499]
[1755152611258,0.2509688,121450.0,121440.0,0.9425384]
[1755152611259,1.02220524,121450.0,121440.0,0.9425384]
[1755152611463,0.66140524,121450.0,121440.0,0.9275584]
[1755152611761,1.02220524,121450.0,121440.0,0.9235584]
[1755152611961,1.02220524,121450.0,121440.0,0.1551584]
[1755152612156,0.2325884,121440.0,121430.0,1.0796542]
[1755152612364,0.5933884,121440.0,121430.0,0.9973413]
[1755152612554,0.5933884,121440.0,121430.0,0.9754952]
[1755152612555,1.00382484,121440.0,121430.0,0.9754952]
[1755152612750,0.5933884,121440.0,121430.0,0.9754952]
[1755152612955,0.15028,121440.0,121430.0,0.9973452]
[1755152613152,0.7803832,121450.0,121440.0,0.2288984]
[1755152613367,0.7803832,121450.0,121440.0,0.2268984]
[1755152613560,0.698076,121450.0,121440.0,0.2268984]
[1755152614267,0.697076,121450.0,121440.0,0.2268984]
[1755152614468,0.697076,121450.0,121440.0,0.2238984]
[1755152615077,0.1716672,121450.0,121440.0,0.2238984]
[1755152615370,0.0213872,121450.0,121440.0,0.70474263]
[1755152615558,0.0213872,121450.0,121440.0,1.47366263]
[1755152615757,0.0213872,121450.0,121440.0,1.83446263]
[1755152615960,0.45198,121490.0,121480.0,0.0822813]
[1755152616159,0.45198,121490.0,121480.0,1.38577553]
[1755152616160,0.05358724,121490.0,121480.0,1.38577553]
[1755152616363,0.1175345,121490.0,121480.0,0.1579113]
[1755152616565,0.55257303,121490.0,121480.0,0.9049313]
[1755152616759,0.5342545,121490.0,121480.0,0.1358113]
[1755152616972,0.45198,121490.0,121480.0,0.9051313]
[1755152617172,0.6105383,121490.0,121480.0,0.9051313]
[1755152617470,0.5282638,121490.0,121480.0,0.61665553]
[1755152617674,0.5282638,121490.0,121480.0,0.9050513]
[1755152617965,0.5222638,121490.0,121480.0,0.9053713]
[1755152618567,0.6045383,121490.0,121480.0,0.9053713]
[1755152618767,0.5222638,121490.0,121480.0,0.9053713]
[1755152619868,0.4663438,121490.0,121480.0,0.9053713]
[1755152620064,0.6045384,121490.0,121480.0,0.9053713]
[1755152620374,0.6636384,121490.0,121480.0,0.1959613]
[1755152620571,0.2325613,121480.0,121470.0,0.1505281]
[1755152620766,0.0822881,121470.0,121460.0,0.2181131]
[1755152620958,0.5342681,121470.0,121460.0,0.9881131]
[1755152622159,0.5352681,121470.0,121460.0,0.03168]
[1755152622359,0.5352681,121470.0,121450.0,0.1139785]
[1755152622360,0.1734749,121460.0,121450.0,0.1139785]
[1755152622572,0.5342749,121460.0,121450.0,0.80212]
[1755152622768,0.1734816,121450.0,121440.0,1.19245]
[1755152623075,0.5342816,121450.0,121440.0,0.80204]
[1755152623675,0.1646371,121430.0,121410.0,0.52554234]
[1755152623978,0.117582,121420.0,121410.0,0.58536167]
[1755152624177,0.173502,121420.0,121410.0,0.77029294]
[1755152624474,0.59924077,121420.0,121410.0,0.82378294]
[1755152624677,0.59924077,121420.0,121410.0,0.90611174]
[1755152624874,0.03526,121420.0,121410.0,0.99969597]
[1755152625064,0.117582,121420.0,121410.0,0.63889597]
[1755152625261,0.117582,121420.0,121410.0,0.65176555]
[1755152625478,0.03526,121420.0,121410.0,0.94500132]
[1755152625668,0.03526,121420.0,121410.0,1.42584555]
[1755152625865,0.3608,121430.0,121420.0,0.1579522]
[1755152626167,0.39606,121440.0,121430.0,0.1579455]
[1755152626370,0.4783687,121440.0,121430.0,0.17081508]
[1755152626567,0.39606,121440.0,121430.0,0.65165931]
[1755152626869,0.5342887,121440.0,121430.0,0.14871508]
[1755152627269,0.54717967,121440.0,121430.0,0.78266958]
[1755152627571,0.54695243,121440.0,121430.0,0.86506508]
[1755152627872,0.54695243,121440.0,121430.0,0.78674958]
[1755152628272,0.54695243,121440.0,121430.0,0.86906498]
[1755152628673,0.46464373,121440.0,121430.0,0.92259498]
[1755152629068,0.54695243,121440.0,121430.0,0.92259498]
[1755152629468,0.54695243,121440.0,121430.0,0.92235498]
[1755152631470,0.54695243,121440.0,121430.0,0.78642958]
[1755152631867,1.02779666,121440.0,121430.0,0.01686958]
[1755152632068,1.02779666,121440.0,121430.0,0.78610958]
[1755152632274,0.54695243,121440.0,121430.0,0.004]
[1755152632472,0.54695243,121440.0,121430.0,0.01687197]
[1755152632975,1.02779666,121440.0,121430.0,0.01687197]
[1755152633763,0.54695243,121440.0,121430.0,0.01687197]
[1755152635267,0.54695243,121440.0,121430.0,0.09918747]
[1755152635481,0.54695243,121440.0,121430.0,0.13225747]
[1755152635972,0.54695243,121440.0,121430.0,0.90077747]
[1755152636775,0.54695243,121440.0,121430.0,0.15474747]
[1755152637076,0.54695243,121440.0,121430.0,1.4039917]
[1755152637275,0.54695243,121440.0,121430.0,0.92314747]
[1755152637663,0.54695243,121440.0,121430.0,0.6355917]
[1755152637864,0.54695243,121440.0,121430.0,1.4252817]
[1755152637865,0.08135373,121440.0,121430.0,1.4252817]
[1755152638068,0.08135373,121440.0,121430.0,1.43752821]
[1755152638264,0.04792373,121440.0,121430.0,1.4252817]
[1755152638877,0.54566243,121440.0,121430.0,0.91374507]
[1755152639069,0.54566243,121440.0,121430.0,0.18840507]
[1755152639277,0.13023243,121440.0,121430.0,1.4384893]
[1755152639680,0.13023243,121440.0,121430.0,0.95764507]
[1755152639982,0.0823087,121440.0,121430.0,1.4384893]
[1755152640181,0.03531,121440.0,121430.0,1.4384893]
[1755152640678,0.1176187,121440.0,121430.0,1.4958593]
[1755152640983,0.03531,121440.0,121430.0,1.4958593]
[1755152641281,0.39611,121450.0,121440.0,0.2166487]
[1755152641485,0.1176119,121450.0,121440.0,1.4793249]
[1755152641685,0.03531,121450.0,121440.0,0.99848067]